Cogmind - Beta 14 @@@ ROGUE MODE // 2024.09.12 @ 18:20:26 Player: Maienne du Crabe Result: Destroyed by Y-45 Defender with Beam Rifle Performance ------------- Evolutions (1) 500 Regions Visited (3) 600 Robots Destroyed (23) 115 Value Destroyed (581) 581 Prototype IDs (1) 20 Alien Tech Used (0) 0 Bonus (-75) -75 TOTAL SCORE: 1741 Bonus ------- Follower Combat Kills 67 Friendly Fire -142 Cogmind --------- Core Integrity 0/400 Matter 66/300 Energy 85/100 System Corruption 10% Temperature Cool (9) Movement Core (50) Location -9/Materials Parts ------- > --- POWER (1) -------- (None) > --- PROPULSION (3) --- (None) > --- UTILITY (3) ------ Targeting Computer > --- WEAPON (2) ------- Improved Assault Rifle > --- INVENTORY (5) ---- Small Battery (100) High-capacity Matter Pod (200) Peak State ------------ > --- POWER ------------ Reinforced Ion Engine > --- PROPULSION ------- Aluminum Leg Aluminum Leg Aluminum Leg > --- UTILITY ---------- Improved Heat Sink Huge Storage Unit Sensor Array > --- WEAPON ----------- Assault Rifle Mining Laser > --- INVENTORY -------- Ion Engine Ion Engine Light Ion Engine Small Battery High-capacity Matter Pod Seismic Detector Targeting Computer Targeting Computer Targeting Computer [Rating: 12] Favorites ----------- Power Ion Engine Engine Ion Engine Propulsion Light Treads Treads Light Treads Leg Aluminum Leg Utility Sensor Array Device Sensor Array Storage Huge Storage Unit Processor Targeting Computer Protection Light Armor Plating Weapon Assault Rifle Energy Gun EM Pulse Gun Ballistic Gun Assault Rifle Launcher Grenade Launcher Special Weapon Mining Laser Build | -11 -10 -10 -9 ------- Run | Yrd Mat Min Mat Slots Evolved 2 | . . . 2 Power . | . . . . Propulsion 1 | . . . 1 Utility 1 | . . . 1 Weapon . | . . . . Parts Attached 30 | 7 1 3 19 Power 3 | 1 . . 2 Engine 3 | 1 . . 2 Core . | . . . . Reactor . | . . . . Propulsion 7 | 2 . . 5 Treads 3 | 2 . . 1 Leg 4 | . . . 4 Wheel . | . . . . Hover . | . . . . Flight . | . . . . Utility 11 | 2 1 1 7 Device 5 | 1 1 . 3 Storage 2 | 1 . 1 . Processor 3 | . . . 3 Hackware . | . . . . Protection 1 | . . . 1 Artifact . | . . . . Weapon 9 | 2 . 2 5 Energy Gun 2 | 1 . . 1 Energy Cannon . | . . . . Ballistic Gun 5 | 1 . 1 3 Ballistic Cannon . | . . . . Launcher 1 | . . 1 . Special Weapon 1 | . . . 1 Impact Weapon . | . . . . Slashing Weapon . | . . . . Piercing Weapon . | . . . . Special Melee Weapon . | . . . . Unidentified Prototypes 1 | . . . 1 Parts Lost 15 | . . 1 14 Power . | . . . . Propulsion 4 | . . . 4 Utility 6 | . . . 6 Weapon 5 | . . 1 4 Highest Loss Streak 4 | . . 1 4 To Critical Strikes . | . . . . Average Slot Usage (%) 96 | . 100 99 88 Engine 12 | . 14 14 9 Treads 24 | . 28 28 17 Leg 3 | . . . 10 Device 14 | . 14 14 14 Storage 12 | . 14 14 8 Processor 1 | . . . 6 Energy Gun 5 | . 14 6 . Ballistic Gun 11 | . 14 11 11 Launcher 6 | . . 9 4 Peak Build Rating 12 | 7 7 8 12 Average Rating 8 | 5 6 7 9 On Entrance 5 | . 7 7 8 Naked Turns . | . . . . Heaviest Build 98 | 15 15 91 98 Greatest Support 60 | 40 40 40 60 Greatest Overweight (x) 4 | 4 . 2 3 Average Overweight (x) . | . . 1 . Largest Inventory Capacity 25 | 8 8 25 25 Average Capacity 17 | 7 8 19 19 Most Carried 15 | 8 8 12 15 Average Carried 9 | 4 7 10 10 Final Capacity 25 | 8 8 25 5 Final Carried 12 | 8 8 12 2 Class Distribution -------------------- 96% | Mutant 3% | Scavenger-Mutant Dominant Class ---------------- Mutant | -10/Materials Mutant | -10/Mines Mutant | -9/Materials Resources | -11 -10 -10 -9 ----------- Run | Yrd Mat Min Mat Matter Collected 885 | 264 145 171 305 Remotely . | . . . . Salvage Created 855 | 146 . 63 646 Parts 46 | 8 . 4 34 Haulers Intercepted . | . . . . Recyclers Shooed 2 | . . . 2 Parts Field Recycled . | . . . . Retrieved Matter . | . . . . Parts Self-Destructed . | . . . . Prevented . | . . . . Kills | -11 -10 -10 -9 ------- Run | Yrd Mat Min Mat Combat Hostiles Destroyed 16 | . . . 16 Guns 14 | . . . 14 AOE 2 | . . . 2 Classes Destroyed 6 | 2 . 1 3 Worker 1 | . . . 1 Tunneler 2 | 2 . . . Recycler 3 | 1 . 1 1 Swarmer 3 | . . . 3 Grunt 11 | . . 1 10 Sentry 3 | . . . 3 Best Kill Streak 3 | 3 . 1 3 Combat Bots Only 3 | . . . 3 Max Kills in Single Turn 1 | 1 . 1 1 Gunslinging . | . . . . Exploded 1 | . . . 1 Melee . | . . . . Uniques/NPCs Destroyed . | . . . . Combat | -11 -10 -10 -9 -------- Run | Yrd Mat Min Mat Hostile Shots Fired 237 | . 1 3 233 Missed 77 | . 1 2 74 Damage Taken 1975 | . . 54 1921 Core 416 | . . 9 407 Absorbed by Shields 21 | . . . 21 Core Remaining (%) 98 | 100 . 96 . Volleys Fired 124 | 4 7 7 106 Largest 2 | 2 2 2 2 Hottest 120 | 60 60 70 120 Shots Fired 167 | 8 14 10 135 Gun 153 | 8 14 7 124 Cannon . | . . . . Launcher 8 | . . 3 5 Special 6 | . . . 6 Kinetic 138 | 4 7 4 123 Thermal 7 | . . . 7 Explosive 8 | . . 3 5 Electromagnetic 14 | 4 7 3 . Robot Hit Streak 9 | 3 5 3 9 Robot Miss Streak 4 | 1 3 3 4 Penetration Max . | . . . . Secondary Targets . | . . . . Shots Hit Robots 98 | 4 6 5 83 Core Hits 45 | 4 2 4 35 Critical Kills . | . . . . Critical Parts Destroyed . | . . . . Critical Strikes 1 | 1 . . . Corrupt 1 | 1 . . . Melee Attacks . | . . . . Impact . | . . . . Slashing . | . . . . Piercing . | . . . . Sneak Attacks . | . . . . Combat Hostiles . | . . . . Follow-up Attacks . | . . . . Damage Inflicted 1751 | 58 73 199 1421 Guns 1278 | 58 73 53 1094 Cannons . | . . . . Explosions 449 | . . 146 303 Melee . | . . . . Ramming . | . . . . Kinetic 1188 | . 53 41 1094 Thermal 24 | . . . 24 Explosive 449 | . . 146 303 Electromagnetic 90 | 58 20 12 . Impact . | . . . . Slashing . | . . . . Piercing . | . . . . Highest Corruption 10 | . . . 10 Average Corruption 8 | . . . 8 Corruption Purged . | . . . . Corruption Blocked . | . . . . Overload Shots . | . . . . Overflow Damage 9 | . . 9 . Projectiles . | . . . . Explosions 9 | . . 9 . Melee . | . . . . Knockbacks . | . . . . Impact . | . . . . Kinetic . | . . . . Secondary . | . . . . Self-Inflicted Damage 36 | . . 36 . Shots 1 | . . 1 . Rammed . | . . . . Targets Rammed . | . . . . Kicked . | . . . . Crushed . | . . . . Highest Temperature 173 | . . 9 173 Average Temperature 51 | . . 7 55 Received Heat Transfer 823 | . . 9 814 Siege Activations . | . . . . Robots Corrupted . | . . . . Combat Hostiles . | . . . . Parts Fried 1 | 1 . . . Impact Corruptions . | . . . . Robots Melted . | . . . . Combat Hostiles . | . . . . Parts Melted . | . . . . Heat Transferred 50 | . . . 50 Parts Sabotaged . | . . . . Parts Stolen . | . . . . Parts Stripped . | . . . . Power Chain Reactions . | . . . . Alert | -11 -10 -10 -9 ------- Run | Yrd Mat Min Mat Peak Influence 257 | 15 39 22 257 Initial 15 | . 9 15 . Average 41 | 5 23 6 123 Maximum Alert Level 1 | . . . 1 Low Security (%) 97 | 100 100 100 90 Level 1 2 | . . . 9 Level 2 . | . . . . Level 3 . | . . . . Level 4 . | . . . . Level 5 . | . . . . High Security . | . . . . Max Security . | . . . . Squads Dispatched 4 | . . . 4 Investigation 2 | . . . 2 Extermination . | . . . . Reinforcement 2 | . . . 2 Assault . | . . . . Garrison . | . . . . Intercept . | . . . . Searches Triggered . | . . . . Construction Impeded 1 | . . . 1 Haulers Reinforced . | . . . . Active Scanning Responses . | . . . . Cargo Convoy Interrupts . | . . . . Stealth | -11 -10 -10 -9 --------- Run | Yrd Mat Min Mat Distress Signals 1 | . . . 1 Communications Jammed . | . . . . Distress Signals . | . . . . Times Spotted 41 | . 4 2 35 Peak Tracking Total 12 | . 2 1 12 Tactical Retreats 4 | . . . 4 Traps | -11 -10 -10 -9 ------- Run | Yrd Mat Min Mat Traps Triggered . | . . . . Indirectly . | . . . . Trap Hack Attempts . | . . . . Triggered . | . . . . Disarmed . | . . . . Reprogrammed . | . . . . Reused . | . . . . Traps Extracted . | . . . . Installed . | . . . . Triggered . | . . . . Machines | -11 -10 -10 -9 ---------- Run | Yrd Mat Min Mat Machines Disabled 3 | . . . 3 Max in Single Turn 1 | . . . 1 Machines Repaired . | . . . . Machines Dismantled . | . . . . Machines Sabotaged . | . . . . Overloaded Fab Kills . | . . . . Hacking | -11 -10 -10 -9 --------- Run | Yrd Mat Min Mat Machines Accessed 4 | . 2 . 2 Terminals 4 | . 2 . 2 Fabricators . | . . . . Repair Stations . | . . . . Recycling Units . | . . . . Scanalyzers . | . . . . Garrison Access . | . . . . Total Hacks 12 | . 5 . 7 Successful 1 | . . . 1 Failed 11 | . 5 . 6 Catastrophic 3 | . 1 . 2 Database Lockouts . | . . . . Manual 4 | . . . 4 Terminals 12 | . 5 . 7 Fabricators . | . . . . Repair Stations . | . . . . Recycling Units . | . . . . Scanalyzers . | . . . . Garrison Access . | . . . . Terminal Hacks 1 | . . . 1 Emergency Access Points 1 | . . . 1 Fabricator Hacks . | . . . . Repair Station Hacks . | . . . . Recycling Unit Hacks . | . . . . Scanalyzer . | . . . . Garrison Access Hacks . | . . . . Unauthorized Hacks . | . . . . Terminals . | . . . . Fabricators . | . . . . Repair Stations . | . . . . Recycling Units . | . . . . Scanalyzers . | . . . . Garrison Access . | . . . . Data Cores Recovered . | . . . . Used . | . . . . Hacking Detections 4 | . 2 . 2 Full Trace Events 3 | . 1 . 2 Feedback Events . | . . . . Feedback Blocked . | . . . . Robot Schematics Acquired . | . . . . Robots Built . | . . . . Authchips . | . . . . Time . | . . . . Total Robot Build Rating . | . . . . Part Schematics Acquired . | . . . . Parts Built . | . . . . Authchips . | . . . . Time . | . . . . Total Part Build Rating . | . . . . Parts Repaired . | . . . . Time . | . . . . Parts Recycled . | . . . . Recycled Matter . | . . . . Retrieved Matter . | . . . . Retrieved Components . | . . . . Parts Scanalyzed . | . . . . Part Schematics Acquired . | . . . . Parts Damaged . | . . . . Bothacking | -11 -10 -10 -9 ------------ Run | Yrd Mat Min Mat Used RIF Installer . | . . . . Robots Hacked . | . . . . Non-combat . | . . . . Combat . | . . . . Robot Hacks Applied . | . . . . Relay Couplers Released . | . . . . Fabnet Peak Effective % . | . . . . Robots Rewired . | . . . . Allies Hacked . | . . . . Hacks Repelled . | . . . . Allies | -11 -10 -10 -9 -------- Run | Yrd Mat Min Mat Total Allies 3 | . . 3 . Largest Group 3 | . . 3 2 Highest-Rated Group 40 | . . 40 32 Highest-Rated Ally 16 | . . 16 16 Total Orders . | . . . . Ally Attacks 27 | . . 2 25 Total Damage 295 | . . 26 269 Kills 3 | . . 1 2 Allies Corrupted . | . . . . Allies Melted . | . . . . Intel | -11 -10 -10 -9 ------- Run | Yrd Mat Min Mat Robot Analysis Total . | . . . . Derelict Logs Recovered 2 | . . 2 . Drone Launches . | . . . . Drone Recoveries . | . . . . Exploration | -11 -10 -10 -9 ------------- Run | Yrd Mat Min Mat Turns Passed 2600 | 110 352 1400 738 Spaces Moved 946 | 45 175 478 248 Core 48 | 12 . . 36 Treads 795 | 33 175 478 109 Legs 103 | . . . 103 Wheels . | . . . . Hover . | . . . . Flight . | . . . . Fastest Speed 50 | 50 160 160 50 Average Speed 211 | 158 160 254 175 Slowest Speed 330 | 250 160 320 330 Overloaded Moves . | . . . . Propulsion Burnouts . | . . . . Robots Hopped . | . . . . Cave-ins Triggered . | . . . . Exploration Rate (%) 39 | 5 37 85 31 Regions Visited 3 Branch Regions 1 Pre-discovered Areas . | . . . . Known Exits Taken . | . . . . Unknown Exits Taken 3 | 1 1 1 . Scrap Searched 1 | . . 1 . Spaces Dug . | . . . . Terrain Destroyed 49 | . . 24 25 Melee . | . . . . Projectile 4 | . . . 4 AOE 45 | . . 24 21 Terrain Rammed . | . . . . Walls Destroyed . | . . . . Machines Disabled . | . . . . Actions | -11 -10 -10 -9 --------- Run | Yrd Mat Min Mat Total 1368 | 72 235 653 408 Wait 229 | 9 45 159 16 Move 943 | 44 174 477 248 Hop . | . . . . Pick Up 23 | 8 3 5 7 Fast Attach 11 | 7 1 1 2 Attach 15 | . . 1 14 Detach 1 | . 1 . . Swap 4 | . . 1 3 Drop 18 | . 4 2 12 Fire 124 | 4 7 7 106 Melee . | . . . . Ram . | . . . . Kick . | . . . . Crush . | . . . . Escape Stasis . | . . . . Rewire . | . . . . Trap . | . . . . Miscellaneous . | . . . . Route ------- -11/Scrapyard -10/Materials -10/Mines (discovered 2 exits: *Mat x2) -9/Materials History --------- Turn | Location | Event 14 | -11/Scrapyard | Discovered new exit (range 16) 111 | -11/Scrapyard | Entered Materials 304 | -10/Materials | Build established: Mutant 414 | -10/Materials | Discovered new exit (range 15) 463 | -10/Materials | Entered Mines 467 | -10/Mines | Met a Derelict bent on vengeance 739 | -10/Mines | Discovered new exit (range 5) 782 | -10/Mines | Learned Materials machine intel 1043 | -10/Mines | Discovered new exit (range 15) 1082 | -10/Mines | Assisted by bots powering up and referring to "LRC-V3" 1863 | -10/Mines | Entered Materials 1863 | -9/Materials | Accompanied by 2 allies 1863 | -9/Materials | Evolved 2 slots: Propulsion x1, Utility x1 1864 | -9/Materials | Loaded intel: 51 machine locations 2434 | -9/Materials | Lost 4 parts (2u2w) 2521 | -9/Materials | Core integrity fell below 50% 2533 | -9/Materials | Lost 3 parts (2n1u) 2576 | -9/Materials | Core integrity fell below 20% 2592 | -9/Materials | System corruption reached 10% 2601 | -9/Materials | Destroyed by Y-45 Defender with Beam Rifle Last Messages --------------- 02531_ Connecting with Terminal... 02534_ K-01 Serf collects debris. 02535_ Aluminum Leg destroyed. 02536_ Dropped Imp. Ion Engine. 02550_ Acquired Prototype Ballistic Gun. 02550_ Identified Imp. Assault Rifle. 02563_ G-34 Mercenary destroyed. 02564_ Targeting Computer destroyed. 02565_ G-34 Mercenary destroyed. 02571_ K-01 Serf collects debris. 02581_ Critical hit (Burn: +26). 02584_ Y-45 Defender destroyed. 02588_ Targeting Computer destroyed. 02588_ System corrupted by crushing effect (+5). 02591_ Shield Generator destroyed. 02591_ System corrupted by crushing effect (+5). 02594_ Knocked back. 02596_ K-01 Serf collects debris. 02596_ Electrolysis Chamber disabled. 02599_ K-01 Serf collects debris. Map ----- +----------------------------------------------------+ | ????????????????????????????????????????????????? | | ????????????????????????????????????????????????? | | ????????????????????????????????????????????????? | | ????????????????????????????????????????????????? | | ????????????????????????????????????????????????? | | ?????????????????"""?"""?????????????"""""?????"? | | ??????????"""????"""?"""?????????????""T""????""? | | ??????????"""????"""?"""????????????????????????? | | ??????????"""???????????????????????????""""????? | | ????????????????????????????????????????""""????? | | ????????????????????????????????????????""""????? | | ????????????????????????????????????????????????? | | ????????????????????????????????????????????????? | | ????????????????????????????????????????????????? | | ?????????????????????????### ###???????????????## | | ?????????????????????????# #???????????????# | | ????????????????????????? #???????????????# | | ?????????????????????????? T ????????????????# | | ?????????????????????????? ????????????????# | | ?????????????????????????? ????????????????# | | ??????????????????????????# #????????????????# | | ??????????????????????????# #???????????????### | | ??????????????????????????# #???????????????# | | ????????????????????####### ########????????# | | ????????????????????# # # #????????# | | ????????????????????# @ # # """ #????????# | | ????????????????????# [b# # "R" #????????# | | ??????????????????"?# " Ygk + " " #????????# | | ????"""??????????"""# " "=#g= # #????????# | | ????"""??????????"""# """!#*Y # #????????# | | ????"""??????????"""# # w##########??????# | | ?????????????????""?####### #?# ##?????# | | ????"""??????????"""??????# #?# "T" #?????# | | ????"""???????????""??????# #?# #??????# | | ????"""??????????"""????### ### #??????# | | ??????????????????"?????# # #??????# | | ????????????????????????# # #??????# | | ????????????????????????# #*""" ######### | | ????????????????????????# + "" # # | | ????"""?????????????????# # """ # # | | ????"Y"?????????????????# # """ # / | | ????????????????????????# # # # | | ???????????????????????#####/#### / # | | ???????????????????????# # ######### | | ???????????????????????# """ # #???????## | | ???????????????????????# """ ########????????? | | ???????????????????????# """ #???????????????? | | ???????????????????????# #?????????????""" | | ???????????????????????# #?????????????""" | | ???????????????????????#!!| / #?????????????""" | +----------------------------------------------------+ Best States ------------- Heat Dissipation 42 Energy Generation 12 Energy Capacity 265 Matter Stores 300 Matter Capacity 300 Sight Range 16 Robot Scan Range 14 Terrain Scan Density 10 Armor Coverage 150 Evasion (%) 55 Targeting Accuracy 15 Recoil Reduction 3 Item Schematics ----------------- None Robot Schematics ------------------ None Fabricated ------------ Nothing Alien Tech Used ----------------- None Achievements -------------- None Challenges ------------ None Game ------ Seed PlasmaZioniteShredder Manual? 0 Play Time 00:22:18 Cumulative 11.2 hours Start 2024.09.12 @ 17:59:06 End 2024.09.12 @ 18:20:26 Sessions 1 Manual Loads 0 Difficulty Rogue Special Mode None Game No. 18 Rogue 18 Adventurer 0 Explorer 0 Win Type - Total 0 Types 0/0/0/0/0/0/0/0/0 Lore% 6 Gallery% 18 Achievement% 17 Wizard Run 0 Options --------- Layout 0 ASCII 0 Keyboard 0 Movement Numpad Keybinds 0 Fullscreen 1 Font 18/X11 Map View 38x25 Zoom Use 5% Tactical HUD 1 Map Filters NONE Filters NONE Steam 1 RUN: 36618c60-e9ff-4112-b0e5-397f77a1e68b